bitfinex/quotes_SOLUSD_20250619
["timestamp","ask_amount","ask_price","bid_price","bid_amount"]
[1750325186534,5.13672716,145.83,145.81,5.21827594]
[1750325186740,2.56925442,145.84,145.82,6.85776985]
[1750325186937,5.13671276,145.83,145.82,6.85776985]
[1750325188844,5.13671276,145.83,145.81,6.85824017]
[1750325189046,5.21827594,145.85,145.81,6.85824017]
[1750325189263,2.56921104,145.84,145.81,6.85824017]
[1750325189558,5.21827594,145.85,145.81,6.85824017]
[1750325189757,2.56921072,145.84,145.81,6.85824017]
[1750325189944,5.21827594,145.85,145.81,6.85824017]
[1750325190144,2.5692104,145.84,145.81,6.85824017]
[1750325190345,5.21827594,145.85,145.81,6.85824017]
[1750325190558,7.7058927,145.84,145.81,6.85824017]
[1750325190870,5.13654834,145.83,145.81,6.85824017]
[1750325191073,2.56917217,145.84,145.81,6.85824017]
[1750325191252,5.21827594,145.85,145.81,6.85824017]
[1750325191453,2.5691957,145.84,145.81,6.85824017]
[1750325191672,5.21827594,145.85,145.81,6.85824017]
[1750325191843,2.56919538,145.84,145.81,6.85824017]
[1750325192045,5.21827594,145.85,145.81,6.85824017]
[1750325192247,5.13654834,145.83,145.81,6.85824017]
[1750325192559,5.21827594,145.85,145.81,6.85824017]
[1750325192746,7.705583,145.84,145.81,6.85824017]
[1750325192946,5.13649397,145.83,145.81,6.85824017]
[1750325193146,2.56907377,145.84,145.81,6.85824017]
[1750325193349,5.13637825,145.83,145.81,6.85824017]
[1750325193567,2.56909006,145.84,145.81,6.85824017]
[1750325193771,5.13637825,145.83,145.81,6.85824017]
[1750325194065,2.569105,145.84,145.81,6.85824017]
[1750325194265,5.13627966,145.83,145.81,6.85824017]
[1750325194450,2.56900164,145.84,145.81,6.85824017]
[1750325194637,5.13634145,145.83,145.81,6.85824017]
[1750325194836,2.56900164,145.84,145.81,6.85824017]
[1750325195146,5.13621459,145.83,145.81,6.85824017]
[1750325195466,7.78732368,145.84,145.81,6.85824017]
[1750325195660,5.13628202,145.83,145.81,6.85824017]
[1750325195851,5.21827594,145.84,145.81,6.85824017]
[1750325196050,5.13615495,145.83,145.81,6.85824017]
[1750325196268,5.21827594,145.84,145.81,6.85824017]
[1750325196470,5.13622656,145.83,145.81,6.85824017]
[1750325196776,5.21827594,145.84,145.81,6.85824017]
[1750325196988,5.13610537,145.83,145.81,6.85824017]
[1750325197187,5.21827594,145.84,145.81,6.85824017]
[1750325197490,5.13610537,145.83,145.81,6.85824017]
[1750325197783,5.21827594,145.84,145.81,6.85824017]
[1750325197984,5.13610637,145.83,145.81,6.85824017]
[1750325198165,5.21827594,145.84,145.81,6.85824017]
[1750325198480,5.13619885,145.83,145.81,6.85824017]
[1750325198680,5.21827594,145.84,145.81,6.85824017]
[1750325198866,5.13612442,145.83,145.81,6.85824017]
[1750325199068,5.21827594,145.84,145.81,6.85824017]
[1750325199366,5.13611537,145.83,145.81,6.85824017]
[1750325199568,5.21827594,145.84,145.81,6.85824017]
[1750325199784,5.13610451,145.83,145.81,6.85824017]
[1750325199970,5.21827594,145.84,145.81,6.85824017]
[1750325200280,5.13610516,145.83,145.81,6.85824017]
[1750325200593,5.21827594,145.84,145.81,6.85824017]
[1750325200786,5.13610606,145.83,145.81,6.85824017]
[1750325201088,5.21827594,145.84,145.81,6.85824017]
[1750325201258,5.13610606,145.83,145.81,6.85824017]
[1750325201553,5.21827594,145.84,145.81,6.85824017]
[1750325201754,5.13613224,145.83,145.81,6.85824017]
[1750325201982,5.21827594,145.84,145.81,6.85824017]
[1750325202186,5.13613224,145.83,145.81,6.85824017]
[1750325202479,5.21827594,145.84,145.81,6.85824017]
[1750325202684,5.13613435,145.83,145.81,6.85824017]
[1750325202892,5.21827594,145.84,145.81,6.85824017]
[1750325203072,5.136135,145.83,145.81,6.85824017]
[1750325203363,5.21827594,145.84,145.81,6.85824017]
[1750325203566,5.13621006,145.83,145.81,6.85824017]
[1750325203765,5.21827594,145.84,145.81,6.85824017]
[1750325203973,5.13613647,145.83,145.81,6.85824017]
[1750325204166,5.21827594,145.84,145.81,6.85824017]
[1750325204383,5.13613711,145.83,145.81,6.85824017]
[1750325204562,5.21827594,145.84,145.81,6.85824017]
[1750325204867,5.13614435,145.83,145.81,6.85824017]
[1750325205067,5.21827594,145.84,145.81,6.85824017]
[1750325205261,6.42068543,145.86,145.81,6.85824017]
[1750325205262,5.13614435,145.83,145.81,12.07651611]
[1750325205489,2.56908628,145.84,145.81,12.07651611]
[1750325205695,5.13621912,145.83,145.81,12.07651611]
[1750325205863,2.56908628,145.84,145.81,12.07651611]
[1750325206073,5.13621912,145.83,145.81,12.07651611]
[1750325206283,2.56908661,145.84,145.81,12.07651611]
[1750325206481,5.13629401,145.83,145.81,12.07651611]
[1750325206700,2.56903091,145.84,145.81,12.07651611]
[1750325206994,5.13629649,145.83,145.81,12.07651611]
[1750325207188,2.56908644,145.84,145.81,12.07651611]
[1750325207390,5.13639467,145.83,145.81,12.07651611]
[1750325207698,2.56908612,145.84,145.81,12.07651611]
[1750325207871,5.13639467,145.83,145.81,12.07651611]
[1750325208071,2.56903232,145.84,145.81,12.07651611]
[1750325208273,5.13639467,145.83,145.81,12.07651611]
[1750325208594,5.13645863,145.82,145.81,12.07651611]
[1750325209889,5.13645863,145.82,145.81,6.85824017]
[1750325210196,5.13645863,145.82,145.81,12.07651611]
[1750325212281,5.21827594,145.86,145.81,29.22211654]
[1750325212481,7.70493257,145.85,145.82,5.21827594]
[1750325212794,5.13606383,145.84,145.82,5.21827594]
[1750325212983,2.56886565,145.85,145.82,5.21827594]
[1750325213290,5.13608232,145.84,145.82,5.21827594]
[1750325213497,2.56868725,145.85,145.82,5.21827594]
[1750325213700,5.13572147,145.84,145.82,5.21827594]
[1750325213887,2.56868728,145.85,145.82,5.21827594]
[1750325214089,5.13566414,145.84,145.82,5.21827594]
[1750325214397,2.56865924,145.85,145.83,6.85729959]
[1750325214584,5.13530636,145.84,145.83,6.85729959]
[1750325215480,10.3535823,145.84,145.83,6.85729959]
[1750325216077,5.13530636,145.84,145.83,6.85729959]
[1750325216804,5.13530636,145.84,145.82,6.85776985]
[1750325217001,5.13530636,145.83,145.82,6.85776985]
[1750325222011,7.70469395,145.83,145.82,6.85776985]
[1750325222185,5.13530636,145.83,145.82,6.85776985]
[1750325225002,7.70612681,145.83,145.82,6.85776985]
[1750325226001,7.70612681,145.83,145.8,12.0769865]
[1750325226206,5.13530636,145.82,145.8,12.0769865]
[1750325226392,5.13530636,145.81,145.8,12.0769865]
[1750325229404,5.21827594,145.84,145.8,29.2237629]
[1750325229610,5.14184764,145.83,145.8,29.2237629]
[1750325229915,5.14184764,145.82,145.8,29.2237629]
[1750325230117,5.14184764,145.81,145.8,29.2237629]
[1750325233999,5.14184764,145.81,145.8,6.85871056]
[1750325234213,12.93141615,145.81,145.8,6.85871056]
[1750325234421,12.93141615,145.81,145.79,64.61003997]
[1750325234731,12.93111224,145.8,145.79,64.61003997]
[1750325236622,12.93111224,145.8,145.79,71.46922098]
[1750325237522,12.93111224,145.8,145.79,64.61003997]
[1750325237706,10.36012358,145.8,145.79,64.61003997]
[1750325237911,12.92556163,145.8,145.79,64.61003997]
[1750325241935,10.36012358,145.8,145.79,64.61003997]
[1750325243948,5.14184764,145.8,145.79,64.61003997]
[1750325244123,10.36012358,145.8,145.79,64.61003997]
[1750325247337,5.14184764,145.8,145.79,71.46922098]
[1750325251337,5.14184764,145.8,145.79,76.68749692]
[1750325251560,5.14184764,145.83,145.79,76.68749692]
[1750325251864,5.14184764,145.82,145.81,6.85824017]
[1750325252029,5.14184764,145.83,145.81,6.85824017]
[1750325252232,5.14184764,145.82,145.81,6.85824017]
[1750325253176,10.36012358,145.82,145.8,6.85871056]
[1750325253358,5.21827594,145.82,145.8,6.85871056]
[1750325256160,5.12149351,145.81,145.8,6.85871056]
[1750325256548,10.33976945,145.81,145.79,71.46901174]
[1750325256857,5.21827594,145.81,145.79,71.46901174]
[1750325257281,5.12027411,145.8,145.79,71.46901174]
[1750325259083,10.33855005,145.8,145.79,64.61003997]
[1750325270200,12.90117694,145.8,145.79,64.61003997]
[1750325270375,10.33855005,145.8,145.79,64.61003997]
[1750325270669,12.90117694,145.8,145.79,64.61003997]
[1750325270873,10.33855005,145.8,145.79,64.61003997]
[1750325271172,12.90117694,145.8,145.79,64.61003997]
[1750325271374,10.33855005,145.8,145.79,64.61003997]
[1750325271573,12.90117694,145.8,145.79,64.61003997]
[1750325271875,10.33855005,145.8,145.79,64.61003997]
[1750325272090,12.90117694,145.8,145.79,64.61003997]
[1750325272297,10.33855005,145.8,145.79,64.61003997]
[1750325272904,12.90269003,145.8,145.79,64.61003997]
[1750325273089,10.33855005,145.8,145.79,64.61003997]
[1750325273289,12.90269003,145.8,145.79,64.61003997]
[1750325274419,10.33855005,145.8,145.79,64.61003997]
[1750325274607,12.90269003,145.8,145.79,64.61003997]
[1750325274794,10.33855005,145.8,145.79,64.61003997]
[1750325275095,12.90269003,145.8,145.79,64.61003997]
[1750325275286,5.12027411,145.8,145.79,71.46922098]
[1750325278516,5.12027411,145.8,145.79,76.68749692]
[1750325283849,14.0658,145.85,145.79,76.68749692]
[1750325283850,6.42068543,145.85,145.79,121.55544945]
[1750325284141,6.42068543,145.89,145.84,5.21827594]
[1750325284345,13.72036505,145.91,145.81,20.87310376]
[1750325284346,7.69742852,145.88,145.87,5.21827594]
[1750325285027,5.13055342,145.88,145.87,8.14649791]
[1750325285229,5.13055342,145.88,145.87,15.00191711]
[1750325286805,5.13055342,145.88,145.85,17.14060037]
[1750325287002,2.5668751,145.9,145.87,8.14649791]
[1750325287313,5.12215066,145.89,145.87,8.14649791]
[1750325287519,2.5668751,145.9,145.87,8.14649791]
[1750325287828,5.11903498,145.89,145.87,8.14649791]
[1750325288128,5.11910784,145.88,145.87,8.14649791]
[1750325288311,5.11910784,145.89,145.87,8.14649791]
[1750325288510,2.55905551,145.9,145.87,8.14649791]
[1750325288731,5.11672984,145.89,145.87,8.14649791]
[1750325288907,2.55905551,145.9,145.88,6.85494927]
[1750325289107,5.1167292,145.89,145.88,6.85494927]
[1750325289614,34.14649791,145.91,145.88,6.85494927]
[1750325289615,5.1167292,145.9,145.88,6.85494927]
[1750325290432,5.1167292,145.9,145.86,8.14649791]
[1750325291309,34.14649791,145.91,145.86,8.14649791]
[1750325291506,39.26322711,145.91,145.87,6.8554192]
[1750325291706,34.14649791,145.91,145.87,6.8554192]
[1750325291951,39.26322711,145.91,145.87,15.00191711]
[1750325292122,34.14649791,145.91,145.87,15.00191711]
[1750325292414,39.26322711,145.91,145.87,15.00191711]
[1750325292614,34.14649791,145.91,145.87,15.00191711]
[1750325292834,39.26322711,145.91,145.87,15.00191711]
[1750325293036,34.14649791,145.91,145.87,15.00191711]
[1750325293231,39.26322711,145.91,145.87,15.00191711]
[1750325293419,34.14649791,145.91,145.87,15.00191711]
[1750325293620,39.26322711,145.91,145.87,15.00191711]
[1750325293812,34.14649791,145.91,145.87,15.00191711]
[1750325294011,39.26322711,145.91,145.87,15.00191711]
[1750325294214,34.14649791,145.91,145.87,15.00191711]
[1750325295639,26.0,145.91,145.87,15.00191711]
[1750325295842,34.14649791,145.91,145.87,15.00191711]
[1750325296043,34.14649791,145.91,145.87,6.8554192]
[1750325296219,34.14649791,145.91,145.87,15.00191711]
[1750325300143,26.0,145.91,145.87,15.00191711]
[1750325300342,34.14649791,145.91,145.87,15.00191711]
[1750325300548,26.0,145.91,145.87,15.00191711]
[1750325300730,34.14649791,145.91,145.87,15.00191711]
[1750325304849,31.21380027,145.91,145.87,5.21380027]
[1750325305253,26.0,145.91,145.87,5.21380027]
[1750325305427,31.21380027,145.91,145.87,5.21380027]
[1750325306337,31.21380027,145.91,145.88,6.85494927]
[1750325307225,26.0,145.91,145.88,12.06874954]
[1750325307664,24.30536447,145.95,145.89,5.21380027]
[1750325307856,5.21380027,145.93,145.89,5.21380027]
[1750325308163,31.21380027,145.93,145.89,5.21380027]
[1750325308463,26.0,145.93,145.9,5.21380027]
[1750325309124,26.0,145.93,145.89,6.8544794]
[1750325309324,26.0,145.93,145.9,5.21380027]
[1750325310262,26.0,145.93,145.89,6.8544794]
[1750325310263,26.0,145.93,145.89,12.06827967]
[1750325310433,31.21380027,145.93,145.89,12.06827967]
[1750325311054,31.21380027,145.93,145.89,6.8544794]
[1750325311260,31.21380027,145.93,145.89,12.06827967]
[1750325312356,26.0,145.93,145.9,5.21380027]
[1750325313060,25.50051895,145.97,145.86,23.99561222]
[1750325313061,5.21380027,145.98,145.92,5.21380027]
[1750325313271,44.49398911,146.0,145.93,5.21380027]
[1750325313272,31.21380027,145.97,145.93,5.21380027]
[1750325313839,5.21380027,145.96,145.92,5.21380027]
[1750325314579,5.21380027,145.96,145.93,6.85260056]
[1750325316357,26.0,145.96,145.93,6.85260056]
[1750325317378,26.0,145.96,145.93,12.06640083]
[1750325317776,31.21380027,145.96,145.93,6.85260056]
[1750325318863,26.0,145.96,145.93,6.85260056]
[1750325319190,31.21380027,145.96,145.93,6.85260056]
[1750325319960,26.0,145.96,145.93,6.85260056]
[1750325320179,31.21380027,145.96,145.93,6.85260056]
[1750325323473,5.21380027,145.95,145.93,6.85260056]
[1750325324077,5.21380027,145.95,145.92,6.85307017]
[1750325325359,10.32252336,145.95,145.92,6.85307017]
[1750325326276,26.0,145.96,145.92,6.85307017]
[1750325326490,10.32499683,145.95,145.92,6.85307017]
[1750325326671,5.21380027,145.95,145.92,6.85307017]
[1750325327778,26.0,145.96,145.92,6.85307017]
[1750325327986,5.11376117,145.95,145.92,6.85307017]
[1750325328297,31.21380027,145.96,145.92,6.85307017]
[1750325328298,5.11727122,145.94,145.92,12.06687044]
[1750325328471,31.21380027,145.96,145.92,12.06687044]
[1750325328671,5.11730095,145.95,145.92,12.06687044]
[1750325328874,5.11730095,145.94,145.92,12.06687044]
[1750325329168,26.0,145.96,145.92,12.06687044]
[1750325329368,5.11736759,145.95,145.92,12.06687044]
[1750325329577,5.11736759,145.94,145.92,6.85307017]
[1750325329786,31.21380027,145.96,145.92,5.21380027]
[1750325329958,5.11733721,145.95,145.91,23.98727318]
[1750325330276,5.11733721,145.94,145.91,29.20107345]
[1750325330477,5.21380027,145.95,145.91,23.98727318]
[1750325330686,5.11741617,145.94,145.91,29.20107345]
[1750325330884,5.21380027,145.95,145.91,12.06734012]
[1750325331073,10.33122435,145.94,145.91,6.85353985]
[1750325331385,5.21380027,145.95,145.91,12.06734012]
[1750325331572,5.11738812,145.94,145.91,12.06734012]
[1750325331775,5.21380027,145.95,145.91,12.06734012]
[1750325331975,5.11737845,145.94,145.91,12.06734012]
[1750325332190,5.21380027,145.95,145.91,12.06734012]
[1750325332406,5.11733694,145.94,145.91,12.06734012]
[1750325332590,5.21380027,145.95,145.91,12.06734012]
[1750325332901,5.11733214,145.94,145.91,12.06734012]
[1750325333102,5.21380027,145.95,145.91,12.06734012]
[1750325333303,5.11759355,145.94,145.91,12.06734012]
[1750325333506,31.21380027,145.96,145.91,12.06734012]
[1750325333802,10.3313974,145.95,145.91,6.85353985]
[1750325334099,5.11759713,145.94,145.91,12.06734012]
[1750325334301,5.21380027,145.95,145.91,12.06734012]
[1750325334480,5.11790019,145.94,145.91,12.06734012]
[1750325334803,5.21380027,145.95,145.91,12.06734012]
[1750325335003,5.1170836,145.94,145.91,12.06734012]
[1750325335214,5.21380027,145.95,145.91,12.06734012]
[1750325335504,5.11637275,145.94,145.91,12.06734012]
[1750325335818,5.21380027,145.95,145.91,12.06734012]
[1750325335989,5.11625814,145.94,145.91,12.06734012]
[1750325336189,5.21380027,145.95,145.91,12.06734012]
[1750325336398,5.11603791,145.94,145.91,12.06734012]
[1750325336590,5.21380027,145.95,145.91,12.06734012]
[1750325336788,5.11600983,145.94,145.91,12.06734012]
[1750325336991,5.21380027,145.95,145.91,12.06734012]
[1750325337179,5.11571146,145.94,145.91,6.85353985]
[1750325337379,26.0,145.96,145.91,6.85353985]
[1750325337578,5.11585485,145.95,145.91,6.85353985]
[1750325337780,5.11585485,145.94,145.91,6.85353985]
[1750325337980,5.21380027,145.95,145.91,6.85353985]
[1750325338180,5.11552926,145.94,145.91,6.85353985]
[1750325338381,5.21380027,145.94,145.91,6.85353985]
[1750325341286,5.21380027,145.95,145.91,6.85353985]
[1750325341487,5.11813031,145.94,145.91,6.85353985]
[1750325341703,5.21380027,145.95,145.91,12.06734012]
[1750325341910,5.11828885,145.94,145.91,12.06734012]
[1750325342219,10.33176437,145.93,145.9,6.85382686]
[1750325342518,5.1179641,145.92,145.9,6.85382686]
[1750325342716,5.21380027,145.93,145.9,6.85382686]
[1750325342889,5.118385,145.92,145.9,6.85382686]
[1750325343088,5.21380027,145.93,145.9,6.85382686]
[1750325343395,5.11843497,145.92,145.89,6.8544794]
[1750325343601,5.21380027,145.94,145.9,5.21380027]
[1750325343914,5.11906954,145.93,145.9,5.21380027]
[1750325344212,5.11906954,145.92,145.9,5.21380027]
[1750325344397,5.21380027,145.94,145.9,5.21380027]
[1750325344600,5.11965279,145.93,145.9,5.21380027]
[1750325344808,5.11965279,145.92,145.9,5.21380027]
[1750325344997,5.21380027,145.94,145.9,5.21380027]
[1750325345205,5.11955046,145.93,145.9,5.21380027]
[1750325345405,5.11955046,145.92,145.91,6.85353985]
[1750325349028,5.11955046,145.92,145.9,6.85400959]
[1750325349227,5.21380027,145.94,145.9,6.85400959]
[1750325349427,5.12737108,145.93,145.9,6.85400959]
[1750325349739,5.12737108,145.92,145.9,12.06780986]
[1750325349936,7.77693771,145.94,145.9,12.06780986]
[1750325350116,5.1272043,145.93,145.9,12.06780986]
[1750325350313,5.1272043,145.92,145.9,12.06780986]
[1750325350513,5.21380027,145.94,145.9,12.06780986]
[1750325350714,5.12850912,145.93,145.91,5.21380027]
[1750325350941,5.12850912,145.92,145.91,5.21380027]
[1750325351125,5.12850912,145.92,145.9,23.98903357]
[1750325351434,2.56467734,145.94,145.91,5.21380027]
[1750325351611,5.13042262,145.93,145.91,5.21380027]
[1750325351814,5.13042262,145.92,145.91,12.06734012]
[1750325352210,2.56629442,145.95,145.91,12.06734012]
[1750325352403,5.13136735,145.94,145.91,12.06734012]
[1750325352610,5.13136735,145.93,145.91,12.06734012]
[1750325352809,2.56615095,145.95,145.91,12.06734012]
[1750325353042,5.13138622,145.94,145.91,12.06734012]
[1750325353221,5.13138622,145.93,145.91,12.06734012]
[1750325353420,5.21380027,145.95,145.91,12.06734012]
[1750325353622,5.13240628,145.94,145.91,12.06734012]
[1750325353808,5.13240628,145.93,145.91,12.06734012]
[1750325354009,5.21380027,145.95,145.91,12.06734012]
[1750325354240,5.13249738,145.94,145.91,12.06734012]
[1750325354418,5.13249738,145.93,145.91,12.06734012]
[1750325354724,2.56681794,145.94,145.91,12.06734012]
[1750325354938,5.13314798,145.93,145.91,12.06734012]
[1750325355111,5.21380027,145.95,145.91,12.06734012]
[1750325355311,5.13308931,145.94,145.91,12.06734012]
[1750325355515,5.13308931,145.93,145.91,12.06734012]
[1750325355726,5.21380027,145.95,145.91,12.06734012]
[1750325355934,7.70065167,145.94,145.91,12.06734012]
[1750325356112,26.0,145.97,145.93,5.21380027]
[1750325356113,6.38590387,145.97,145.93,5.21380027]
[1750325356312,7.7008019,145.96,145.93,5.21380027]
[1750325356519,5.13410643,145.95,145.93,5.21380027]
[1750325356725,5.13410643,145.94,145.93,5.21380027]
[1750325357110,5.13410643,145.94,145.91,112.18738948]
[1750325357309,5.21380027,145.96,145.92,5.21380027]
[1750325357511,5.21380027,145.96,145.91,112.18738948]
[1750325357512,5.13433316,145.95,145.91,112.18738948]
[1750325357710,5.13433316,145.94,145.92,5.21380027]
[1750325357926,5.13433316,145.93,145.92,12.06687044]
[1750325358720,2.56702669,145.95,145.92,12.06687044]
[1750325358932,5.13404917,145.94,145.92,12.06687044]
[1750325359116,5.21380027,145.96,145.92,12.06687044]
[1750325359311,5.13404852,145.95,145.92,12.06687044]
[1750325359511,5.13404852,145.94,145.92,12.06687044]
[1750325359711,5.21380027,145.96,145.92,12.06687044]
[1750325359938,5.13385944,145.95,145.92,12.06687044]
[1750325360128,5.13385944,145.94,145.93,5.21380027]
[1750325360445,5.13385944,145.94,145.93,12.06640083]
[1750325363726,5.13385944,145.94,145.93,6.85260056]
[1750325376152,5.13385944,145.94,145.92,5.21380027]
[1750325376359,5.21380027,145.96,145.92,5.21380027]
[1750325376645,5.13185774,145.95,145.92,5.21380027]
[1750325376850,5.13185774,145.94,145.92,5.21380027]
[1750325377172,5.21380027,145.96,145.93,6.85260056]
[1750325377381,5.13175151,145.95,145.93,6.85260056]
[1750325377678,5.13175151,145.94,145.93,6.85260056]
[1750325380171,5.13175151,145.94,145.91,23.98738948]
[1750325380468,5.13175151,145.93,145.91,23.98738948]
[1750325380672,5.21380027,145.95,145.91,23.98738948]
[1750325380883,5.13211056,145.94,145.91,23.98738948]
[1750325381075,5.13211056,145.93,145.91,23.98738948]
[1750325381263,5.21380027,145.95,145.91,23.98738948]
[1750325381464,5.13201751,145.94,145.91,23.98738948]
[1750325381662,5.13201751,145.93,145.91,23.98738948]
[1750325381864,5.21380027,145.95,145.91,29.20118975]
[1750325382079,5.13214886,145.94,145.91,29.20118975]
[1750325382255,5.13214886,145.93,145.91,29.20118975]
[1750325382448,5.21380027,145.95,145.91,29.20118975]
[1750325382654,5.13218967,145.94,145.91,29.20118975]
[1750325382855,5.13218967,145.93,145.91,29.20118975]
[1750325383069,5.21380027,145.95,145.91,29.20118975]
[1750325383387,5.13218967,145.94,145.91,29.20118975]
[1750325383679,5.13218967,145.93,145.91,29.20118975]
[1750325383877,5.21380027,145.95,145.91,29.20118975]
[1750325384078,5.13222934,145.94,145.91,29.20118975]
[1750325384283,5.13222934,145.93,145.91,29.20118975]
[1750325384474,5.21380027,145.95,145.91,29.20118975]
[1750325384683,5.13221892,145.94,145.91,29.20118975]
[1750325384869,5.13221892,145.93,145.91,23.98738948]
[1750325385070,5.1324142,145.92,145.91,6.85353985]
[1750325386680,5.1324142,145.92,145.9,6.85400959]
[1750325386882,5.1324142,145.91,145.9,6.85400959]
[1750325388795,5.1324142,145.91,145.89,6.8544794]
[1750325388999,5.1324142,145.9,145.89,6.8544794]
[1750325389582,5.21380027,145.92,145.89,6.8544794]
[1750325389792,5.13219602,145.91,145.89,6.8544794]
[1750325389987,5.21380027,145.92,145.89,6.8544794]
[1750325390192,5.13222714,145.91,145.89,6.8544794]
[1750325390377,5.13222714,145.9,145.89,6.8544794]
[1750325390693,7.77976377,145.92,145.89,6.8544794]
[1750325390878,5.13180689,145.91,145.89,6.8544794]
[1750325391077,7.77976377,145.92,145.89,6.8544794]
[1750325391298,5.13180689,145.91,145.89,6.8544794]
[1750325391504,5.21380027,145.92,145.89,6.8544794]
[1750325391677,5.13148538,145.91,145.89,6.8544794]
[1750325391877,7.77941665,145.92,145.89,6.8544794]
[1750325392077,5.13151585,145.91,145.89,6.8544794]
[1750325392286,5.21380027,145.92,145.89,6.8544794]
[1750325392287,7.77941665,145.92,145.89,6.8544794]
[1750325392489,5.13151649,145.91,145.89,6.8544794]
[1750325392687,7.77941665,145.92,145.89,6.8544794]
[1750325392897,5.13117286,145.91,145.89,6.8544794]
[1750325393105,5.21380027,145.92,145.89,6.8544794]
[1750325393296,5.13117221,145.91,145.89,6.8544794]
[1750325393498,5.21380027,145.92,145.89,6.8544794]
[1750325393698,5.1307745,145.91,145.89,6.8544794]
[1750325393900,5.21380027,145.93,145.89,12.06827967]
[1750325394099,7.69616837,145.92,145.89,12.06827967]
[1750325394416,5.13078256,145.91,145.89,12.06827967]
[1750325394593,7.77914072,145.93,145.89,12.06827967]
[1750325394795,5.13036054,145.92,145.89,12.06827967]
[1750325394997,5.13036054,145.91,145.88,29.20533555]
[1750325395199,5.21380027,145.92,145.88,29.20533555]
[1750325395499,5.13033202,145.91,145.88,29.20533555]
[1750325395810,5.21380027,145.92,145.88,29.20533555]
[1750325396004,5.12987444,145.91,145.88,29.20533555]
[1750325396196,5.21380027,145.92,145.88,29.20533555]
[1750325396397,5.12987508,145.91,145.88,29.20533555]
[1750325396598,5.21380027,145.92,145.88,29.20533555]
[1750325396814,5.12937883,145.91,145.88,29.20533555]
[1750325397018,5.21380027,145.92,145.88,29.20533555]
[1750325397311,5.12937883,145.91,145.88,29.20533555]
[1750325397514,5.21380027,145.92,145.88,29.20533555]
[1750325397718,5.12921585,145.91,145.88,29.20533555]
[1750325397910,5.21380027,145.92,145.88,29.20533555]
[1750325398214,5.12890195,145.91,145.88,29.20533555]
[1750325398419,5.12890195,145.9,145.88,29.20533555]
[1750325398595,5.21380027,145.92,145.88,29.20533555]
[1750325398798,5.12839209,145.91,145.88,23.99153528]
[1750325398997,5.12839209,145.9,145.88,29.20533555]
[1750325399201,5.21380027,145.92,145.88,29.20533555]
[1750325399403,5.12832241,145.91,145.88,29.20533555]
[1750325399713,5.21380027,145.92,145.88,29.20533555]
[1750325399914,5.12778437,145.91,145.88,29.20533555]
[1750325400116,5.21380027,145.92,145.88,29.20533555]
[1750325400314,5.12778437,145.91,145.88,29.20533555]
[1750325400518,5.21380027,145.92,145.88,29.20533555]
[1750325400719,40.53130387,145.96,145.9,5.21380027]
[1750325400926,5.21380027,145.94,145.9,5.21380027]
[1750325401106,5.12719741,145.93,145.9,5.21380027]
[1750325401306,5.12719741,145.92,145.9,5.21380027]
[1750325401614,7.77736445,145.94,145.9,5.21380027]
[1750325401921,5.12726878,145.93,145.9,5.21380027]
[1750325402104,5.12726878,145.92,145.91,6.85353985]
[1750325403123,5.12726878,145.92,145.9,5.21380027]
[1750325403300,5.21380027,145.94,145.9,5.21380027]
[1750325403494,5.12731078,145.93,145.9,5.21380027]
[1750325403695,5.12731078,145.92,145.9,5.21380027]
[1750325403896,2.56356418,145.94,145.9,5.21380027]
[1750325404207,5.12727253,145.93,145.91,6.85353985]
[1750325404410,5.12727253,145.92,145.91,6.85353985]
[1750325406120,5.12727253,145.92,145.91,12.06734012]
[1750325408033,5.12727253,145.92,145.91,6.85353985]
[1750325408336,5.12727253,145.92,145.91,12.06734012]
[1750325409235,5.12727253,145.92,145.91,6.85353985]
[1750325409741,5.12727253,145.92,145.9,6.85385206]
[1750325410036,5.12853075,145.91,145.9,6.85385206]
[1750325410539,5.12853075,145.91,145.89,6.85431647]
[1750325410720,10.34233102,145.9,145.86,5.21380027]
[1750325411037,5.12853075,145.89,145.86,12.06968947]
[1750325411337,5.21380027,145.9,145.86,12.06968947]
[1750325411514,5.12722117,145.89,145.86,12.06968947]
[1750325411721,7.77868074,145.91,145.87,5.21380027]
[1750325411938,5.12752739,145.9,145.87,5.21380027]
[1750325412129,5.12752739,145.89,145.87,5.21380027]
[1750325412334,7.77868074,145.91,145.87,5.21380027]
[1750325412534,5.12656565,145.9,145.87,5.21380027]
[1750325412721,5.12656565,145.89,145.88,6.85494927]
[1750325415324,5.21380027,145.91,145.88,6.85494927]
[1750325415530,5.12599245,145.9,145.88,6.85494927]
[1750325415728,5.21380027,145.91,145.88,6.85494927]
[1750325415918,5.12606737,145.9,145.88,6.85494927]
[1750325416245,5.12606737,145.89,145.88,6.85494927]
[1750325416906,5.21380027,145.91,145.88,6.85494927]
[1750325417110,5.12598129,145.9,145.88,12.06874954]
[1750325417339,7.77630224,145.92,145.88,12.06874954]
[1750325417643,5.12576099,145.91,145.88,12.06874954]
[1750325417936,5.21380027,145.94,145.9,5.21380027]
[1750325418141,5.12583131,145.93,145.9,5.21380027]
[1750325418324,5.12583131,145.92,145.9,5.21380027]
[1750325418519,7.77648764,145.94,145.9,5.21380027]
[1750325418723,5.12634671,145.93,145.9,5.21380027]
[1750325418940,7.77648764,145.94,145.9,5.21380027]